bitfinex/quotes_SOLUSD_20241225
["timestamp","ask_amount","ask_price","bid_price","bid_amount"]
[1735167992203,20.0,197.12,197.07,8.88769558]
[1735167992802,0.76559567,197.14,197.07,8.88769558]
[1735167992980,0.76559567,197.14,197.09,8.88769558]
[1735167993180,0.76559567,197.15,197.09,8.88769558]
[1735167994607,0.76559567,197.15,197.04,30.76095801]
[1735167994608,2.43159567,197.16,197.1,8.88769558]
[1735167994819,1.666,197.16,197.11,8.88769558]
[1735167995509,9.65329125,197.15,197.06,20.0]
[1735167995713,9.65329125,197.15,197.08,8.88769558]
[1735167996012,9.65329125,197.15,197.07,8.88769558]
[1735167996814,8.88769558,197.14,197.07,8.88769558]
[1735167997116,9.65329125,197.13,197.06,8.88769558]
[1735167997286,0.76559567,197.13,197.06,8.88769558]
[1735168000037,0.76559567,197.13,197.0,30.0]
[1735168000205,0.76559567,197.13,197.03,8.88769558]
[1735168000206,8.88769558,197.1,197.03,8.88769558]
[1735168000406,0.76559567,197.09,197.03,8.88769558]
[1735168001439,10.51739558,197.08,196.96,30.0]
[1735168001620,8.88769558,197.06,196.98,8.88769558]
[1735168001940,9.65329125,197.05,196.98,8.88769558]
[1735168002138,8.88769558,197.04,196.97,8.88769558]
[1735168002318,0.76559567,197.03,196.97,8.88769558]
[1735168002744,8.88769558,197.02,196.92,30.0]
[1735168003042,0.76559567,197.01,196.95,8.88769558]
[1735168005254,0.76559567,197.01,196.96,8.88769558]
[1735168005564,0.76559567,197.02,196.96,8.88769558]
[1735168006055,0.76559567,197.02,196.95,8.88769558]
[1735168006258,8.88769558,196.99,196.89,0.76148125]
[1735168006567,0.76559567,196.98,196.92,8.88769558]
[1735168010060,0.76559567,196.98,196.91,8.88769558]
[1735168010255,9.65329125,196.98,196.91,8.88769558]
[1735168010446,8.88769558,196.97,196.9,8.88769558]
[1735168010764,0.76559567,196.96,196.9,8.88769558]
[1735168010929,8.88769558,196.95,196.88,8.88769558]
[1735168011131,8.88769558,196.93,196.86,8.88769558]
[1735168011324,0.76559567,196.92,196.87,8.88769558]
[1735168012270,12.6922,196.97,196.88,8.88769558]
[1735168012565,0.76559567,196.96,196.9,8.88769558]
[1735168013463,20.0,196.98,196.93,8.88769558]
[1735168013638,20.0,196.97,196.93,8.88769558]
[1735168014256,0.76559567,196.96,196.91,8.88769558]
[1735168014782,0.76559567,196.96,196.85,30.0]
[1735168014940,8.88769558,196.95,196.88,8.88769558]
[1735168015140,0.76559567,196.94,196.88,8.88769558]
[1735168016178,0.76559567,196.94,196.88,13.94089684]
[1735168017775,0.76559567,196.95,196.88,13.94089684]
[1735168018153,0.76559567,196.95,196.89,13.94089684]
[1735168018358,0.76559567,196.95,196.9,13.94089684]
[1735168018544,0.76559567,196.97,196.9,13.94089684]
[1735168019040,0.76559567,196.97,196.91,13.94089684]
[1735168019670,0.76559567,196.97,196.92,13.94089684]
[1735168019971,20.76559567,196.98,196.92,13.94089684]
[1735168020480,34.70649251,196.98,196.91,13.94089684]
[1735168021381,34.70649251,196.98,196.9,13.94089684]
[1735168021749,13.94089684,196.97,196.9,13.94089684]
[1735168022076,34.70649251,196.98,196.91,13.94089684]
[1735168022254,20.76559567,196.98,196.91,13.94089684]
[1735168022681,0.76559567,196.98,196.91,13.94089684]
[1735168022871,2.39529567,197.0,196.93,13.94089684]
[1735168023077,1.6297,197.0,196.94,13.94089684]
[1735168023384,1.6297,197.0,196.95,13.94089684]
[1735168023585,1.6297,197.0,196.96,13.94089684]
[1735168023749,15.60559684,197.05,196.97,13.94089684]
[1735168023946,0.76559567,197.04,196.98,13.94089684]
[1735168024180,0.76559567,197.04,196.97,13.94089684]
[1735168024575,0.76559567,197.04,196.98,13.94089684]
[1735168025884,1.6647,197.05,197.0,13.94089684]
[1735168026396,0.76559567,197.04,196.99,13.94089684]
[1735168027369,1.6647,197.05,197.0,13.94089684]
[1735168027594,1.6647,197.1,197.04,13.94089684]
[1735168028495,15.60559684,197.1,197.03,13.94089684]
[1735168029016,13.94089684,197.09,197.02,13.94089684]
[1735168029314,1.6647,197.1,197.03,13.94089684]
[1735168029889,1.6647,197.1,197.04,13.94089684]
[1735168030508,1.6647,197.1,197.06,13.94089684]
[1735168031019,1.6647,197.1,197.04,13.94089684]
[1735168031316,2.43029567,197.1,197.03,13.94089684]
[1735168032018,13.94089684,197.08,197.0,13.94089684]
[1735168032316,0.76559567,197.07,197.01,13.94089684]
[1735168032899,0.76559567,197.08,197.01,13.94089684]
[1735168033925,0.76559567,197.08,197.02,13.94089684]
[1735168034094,0.76559567,197.09,197.02,13.94089684]
[1735168034590,1.6647,197.1,197.04,13.94089684]
[1735168035101,1.6647,197.1,197.05,13.94089684]
[1735168036235,1.6647,197.1,197.07,13.94089684]
[1735168036423,16.24419251,197.15,197.08,13.94089684]
[1735168036823,2.30329567,197.15,197.08,13.94089684]
[1735168037347,1.5377,197.15,197.09,13.94089684]
[1735168037518,1.5377,197.15,197.1,13.94089684]
[1735168037718,0.76559567,197.19,197.12,13.94089684]
[1735168037719,14.70649251,197.19,197.12,13.94089684]
[1735168038016,13.94089684,197.17,197.09,13.94089684]
[1735168038321,0.76559567,197.16,197.09,13.94089684]
[1735168038644,14.70649251,197.16,197.09,13.94089684]
[1735168041750,0.76559567,197.16,197.09,13.94089684]
[1735168043961,14.70649251,197.16,197.09,13.94089684]
[1735168044165,13.94089684,197.15,197.08,13.94089684]
[1735168044337,0.76559567,197.14,197.07,13.94089684]
[1735168045168,13.94089684,197.17,197.1,13.94089684]
[1735168045364,13.94089684,197.18,197.11,13.94089684]
[1735168045664,0.76559567,197.19,197.13,13.94089684]
[1735168046359,0.76559567,197.19,197.12,13.94089684]
[1735168046565,14.70649251,197.19,197.12,13.94089684]
[1735168046935,1.502,197.2,197.14,13.94089684]
[1735168047135,1.502,197.2,197.17,13.94089684]
[1735168047656,15.44289684,197.24,197.17,13.94089684]
[1735168047961,0.76559567,197.23,197.16,13.94089684]
[1735168048352,0.76559567,197.23,197.17,13.94089684]
[1735168048539,1.502,197.24,197.18,13.94089684]
[1735168048737,2.26759567,197.24,197.18,13.94089684]
[1735168049038,16.20849251,197.24,197.17,13.94089684]
[1735168049249,16.20849251,197.24,197.16,13.94089684]
[1735168049466,13.94089684,197.22,197.15,13.94089684]
[1735168049760,14.70649251,197.21,197.13,13.94089684]
[1735168050082,13.94089684,197.19,197.11,13.94089684]
[1735168050270,0.76559567,197.18,197.11,13.94089684]
[1735168050477,20.0,197.2,197.13,13.94089684]
[1735168050676,0.76559567,197.2,197.14,13.94089684]
[1735168051070,14.70649251,197.21,197.13,13.94089684]
[1735168051376,14.70649251,197.21,197.14,13.94089684]
[1735168052481,13.94089684,197.19,197.12,13.94089684]
[1735168052693,13.94089684,197.19,197.06,38.194]
[1735168052694,14.70649251,197.18,197.11,13.94089684]
[1735168052986,0.76559567,197.18,197.11,13.94089684]
[1735168053371,14.70649251,197.18,197.11,13.94089684]
[1735168054379,0.76559567,197.18,197.11,13.94089684]
[1735168054588,0.76559567,197.18,197.12,13.94089684]
[1735168057272,14.70649251,197.22,197.14,13.94089684]
[1735168059193,13.94089684,197.2,197.12,13.94089684]
[1735168059375,13.94089684,197.18,197.11,13.94089684]
[1735168059972,0.76559567,197.19,197.12,13.94089684]
[1735168064313,8.89957915,197.2,197.12,8.89957915]
[1735168064900,0.76559567,197.19,197.12,8.89957915]
[1735168065286,8.89957915,197.2,197.12,8.89957915]
[1735168066716,0.76559567,197.21,197.14,8.89957915]
[1735168067587,0.76559567,197.23,197.14,8.89957915]
[1735168067793,0.76559567,197.23,197.16,8.89957915]
[1735168069318,8.89957915,197.22,197.14,8.89957915]
[1735168069494,0.76559567,197.21,197.14,8.89957915]
[1735168070394,8.89957915,197.22,197.14,8.89957915]
[1735168070717,0.76559567,197.23,197.16,8.89957915]
[1735168070906,7.7126,197.24,197.18,8.89957915]
[1735168072903,0.76559567,197.23,197.18,8.89957915]
[1735168073104,0.76559567,197.23,197.16,8.89957915]
[1735168073312,8.89957915,197.22,197.14,8.89957915]
[1735168073628,0.76559567,197.21,197.14,8.89957915]
[1735168074205,8.89957915,197.22,197.14,8.89957915]
[1735168074410,0.76559567,197.21,197.14,8.89957915]
[1735168076807,0.76559567,197.23,197.14,8.89957915]
[1735168077026,16.61217915,197.24,197.16,8.89957915]
[1735168077232,7.7126,197.24,197.18,8.89957915]
[1735168081115,1.502,197.24,197.18,8.89957915]
[1735168085145,1.502,197.24,197.16,30.76047445]
[1735168085345,1.502,197.24,197.19,8.89957915]
[1735168086220,8.92569567,197.29,197.23,8.89957915]
[1735168086421,8.1601,197.29,197.23,8.89957915]
[1735168088353,17.05967915,197.29,197.22,8.89957915]
[1735168089635,1.5879,197.29,197.24,8.89957915]
[1735168093358,7.6478,197.34,197.27,8.89957915]
[1735168093563,0.76559567,197.33,197.27,8.89957915]
[1735168093864,0.76559567,197.33,197.26,8.89957915]
[1735168094163,0.76559567,197.33,197.24,30.0]
[1735168094373,0.76559567,197.33,197.26,8.89957915]
[1735168096663,8.89957915,197.31,197.24,8.89957915]
[1735168096961,9.66517482,197.3,197.19,0.76034242]
[1735168097266,0.76559567,197.3,197.23,8.89957915]
[1735168100360,8.89957915,197.33,197.25,8.89957915]
[1735168100571,9.66517482,197.33,197.25,8.89957915]
[1735168101465,9.66517482,197.33,197.26,8.89957915]
[1735168101466,0.76559567,197.33,197.26,8.89957915]
[1735168101768,0.76559567,197.33,197.27,8.89957915]
[1735168102270,7.6478,197.34,197.29,8.89957915]
[1735168103139,7.6478,197.34,197.28,8.89957915]
[1735168104568,8.41339567,197.34,197.28,8.89957915]
[1735168106170,8.41339567,197.34,197.29,8.89957915]
[1735168106371,1.5879,197.34,197.32,8.89957915]
[1735168106560,1.5879,197.34,197.33,8.89957915]
[1735168106745,1.5879,197.34,197.3,8.89957915]
[1735168106958,1.5879,197.34,197.27,23.776884]
[1735168107247,7.9328541,197.43,197.33,8.89957915]
[1735168107452,7.9328541,197.43,197.36,28.89957915]
[1735168107648,0.76559567,197.42,197.32,30.75985721]
[1735168107846,8.89957915,197.43,197.33,20.0]
[1735168108163,0.76559567,197.42,197.35,8.89957915]
[1735168108369,8.89957915,197.44,197.36,8.89957915]
[1735168108570,0.76559567,197.43,197.36,8.89957915]
[1735168111376,11.25307482,197.46,197.38,8.89957915]
[1735168111579,11.25307482,197.46,197.4,8.89957915]
[1735168111580,2.35349567,197.46,197.4,8.89957915]
[1735168111758,1.5879,197.46,197.4,8.89957915]
[1735168113084,1.5879,197.46,197.41,8.89957915]
[1735168113259,1.5879,197.46,197.42,8.89957915]
[1735168114301,6.0599,197.48,197.42,8.89957915]
[1735168114510,11.22947482,197.51,197.42,8.89957915]
[1735168114970,8.89957915,197.5,197.43,8.89957915]
[1735168115170,0.12549,197.48,197.35,30.7596148]
[1735168115375,8.89957915,197.46,197.39,8.89957915]
[1735168115583,8.16517482,197.46,197.39,8.89957915]
[1735168115805,8.89957915,197.48,197.41,8.89957915]
[1735168116293,1.5643,197.51,197.41,8.89957915]
[1735168116599,8.89957915,197.48,197.4,28.89957915]
[1735168117496,8.89957915,197.47,197.4,28.89957915]
[1735168117902,8.89957915,197.48,197.4,28.89957915]
[1735168119400,8.89957915,197.48,197.4,8.89957915]
[1735168119996,8.89957915,197.46,197.33,30.0]
[1735168120203,8.89957915,197.45,197.37,8.89957915]
[1735168120506,8.89957915,197.43,197.34,8.89957915]
[1735168120710,8.89957915,197.4,197.29,12.95850787]
[1735168121005,8.89957915,197.4,197.32,8.89957915]
[1735168122283,8.89957915,197.42,197.34,8.89957915]
[1735168123807,8.89957915,197.42,197.28,6.37710591]
[1735168123808,8.89957915,197.39,197.31,8.89957915]
[1735168124017,12.6633,197.42,197.31,8.89957915]
[1735168124018,8.89957915,197.38,197.31,8.89957915]
[1735168124202,10.46387915,197.36,197.29,8.89957915]
[1735168124393,10.46387915,197.36,197.28,8.89957915]
[1735168125811,10.46387915,197.36,197.29,8.89957915]
[1735168125978,10.46387915,197.36,197.25,12.6737]
[1735168125979,1.5643,197.36,197.3,8.89957915]
[1735168126603,1.5643,197.36,197.32,8.89957915]
[1735168126777,1.5643,197.36,197.28,30.76002127]
[1735168126978,1.5643,197.36,197.32,8.89957915]
[1735168127176,1.5643,197.36,197.28,30.76002127]
[1735168127177,1.5643,197.36,197.31,8.89957915]
[1735168127377,1.5643,197.36,197.3,8.89957915]
[1735168130428,1.5643,197.36,197.26,0.76010833]
[1735168130727,1.5643,197.36,197.29,8.89957915]
[1735168130921,1.5643,197.36,197.3,8.89957915]
[1735168131327,1.5643,197.36,197.27,20.0]
[1735168131635,17.03567915,197.36,197.29,8.89957915]
[1735168132126,8.1361,197.36,197.3,8.89957915]
[1735168133037,8.1361,197.36,197.28,8.89957915]
[1735168133330,8.89957915,197.34,197.21,30.0]
[1735168133533,8.89957915,197.34,197.26,8.89957915]
[1735168135133,8.89957915,197.34,197.2,14.3416143]
[1735168135134,17.03567915,197.36,197.29,8.89957915]
[1735168136735,17.03567915,197.36,197.27,8.89957915]
[1735168136929,8.89957915,197.34,197.27,8.89957915]
[1735168137507,0.12549,197.35,197.27,8.89957915]
[1735168137706,9.02506915,197.35,197.27,8.89957915]
[1735168137921,8.89957915,197.33,197.27,8.89957915]
[1735168138127,8.89957915,197.33,197.25,8.89957915]
[1735168138325,1.5041,197.3,197.23,8.89957915]
[1735168138720,8.89957915,197.29,197.21,8.89957915]
[1735168139709,10.40367915,197.3,197.22,8.89957915]
[1735168140737,10.40367915,197.3,197.23,8.89957915]
[1735168140911,8.89957915,197.29,197.21,8.89957915]
[1735168141538,8.89957915,197.28,197.2,8.89957915]
[1735168142913,0.12549,197.27,197.2,8.89957915]
[1735168143133,10.54627915,197.23,197.16,8.89957915]
[1735168143329,8.89957915,197.22,197.15,8.89957915]
[1735168144522,8.89957915,197.22,197.14,8.89957915]
[1735168144845,8.89957915,197.22,197.15,8.89957915]
[1735168145349,10.54627915,197.23,197.16,8.89957915]
[1735168145513,1.6467,197.23,197.17,8.89957915]
[1735168149218,10.54627915,197.23,197.16,8.89957915]
[1735168149549,8.89957915,197.21,197.13,8.89957915]
[1735168150552,15.09497915,197.21,197.13,8.89957915]
[1735168150854,8.89957915,197.18,197.11,8.89957915]
[1735168151628,8.89957915,197.19,197.12,8.89957915]
[1735168151829,8.89957915,197.16,197.06,0.7606963]
[1735168152056,8.89957915,197.15,197.08,8.89957915]
[1735168152823,1.6467,197.12,197.02,30.0]
[1735168153055,10.54627915,197.12,197.04,8.89957915]
[1735168153259,1.6467,197.12,197.07,8.89957915]
[1735168153558,1.6467,197.12,197.08,8.89957915]
[1735168153924,1.6467,197.12,197.1,8.89957915]
[1735168154327,1.6467,197.12,197.08,8.89957915]
[1735168154530,1.6467,197.12,197.07,8.89957915]
[1735168155736,1.6467,197.12,197.05,8.89957915]
[1735168156054,10.54627915,197.12,197.04,8.89957915]
[1735168156455,8.89957915,197.11,197.04,8.89957915]
[1735168158250,8.89957915,197.08,197.0,20.0]
[1735168158453,8.89957915,197.08,197.01,8.89957915]
[1735168158754,6.1242,197.1,197.01,8.89957915]
[1735168158949,8.89957915,197.09,197.02,8.89957915]
[1735168159874,15.02377915,197.1,197.02,8.89957915]
[1735168160476,8.89957915,197.09,197.02,8.89957915]
[1735168161568,8.89957915,197.08,197.0,8.89957915]
[1735168161950,8.89957915,197.08,197.01,8.89957915]
[1735168162148,9.02506915,197.09,197.01,8.89957915]
[1735168163378,6.1242,197.1,197.02,8.89957915]
[1735168163671,8.89957915,197.09,197.02,8.89957915]
[1735168164163,8.89957915,197.07,196.93,43.4560511]
[1735168164347,8.89957915,197.05,196.98,8.89957915]
[1735168164548,1.6132,197.07,196.93,43.4560511]
[1735168164549,8.89957915,197.04,196.97,8.89957915]
[1735168164743,8.89957915,197.05,196.98,8.89957915]
[1735168165778,9.02506915,197.06,196.98,8.89957915]
[1735168165980,1.6132,197.07,197.0,8.89957915]
[1735168166276,1.6132,197.07,197.02,8.89957915]
[1735168166980,1.6132,197.07,197.01,8.89957915]
[1735168167763,10.51277915,197.07,196.96,12.6928]
[1735168168061,10.51277915,197.07,197.0,8.89957915]
[1735168169074,10.51277915,197.07,196.99,8.89957915]
[1735168170173,1.6132,197.07,197.01,8.89957915]
[1735168170407,1.6132,197.07,197.03,8.89957915]
[1735168170877,1.6132,197.07,197.02,8.89957915]
[1735168171479,1.6132,197.07,196.97,30.76118898]
[1735168171682,8.89957915,197.06,196.95,30.0]
[1735168171856,8.89957915,197.06,196.99,8.89957915]
[1735168172059,21.6132,197.07,196.94,23.776884]
[1735168172281,30.51277915,197.07,196.99,8.89957915]
[1735168172885,21.6132,197.07,197.0,8.89957915]
[1735168178186,21.6132,197.07,197.01,8.89957915]
[1735168178864,1.6132,197.07,197.03,8.89957915]
[1735168179673,1.6132,197.07,197.02,8.89957915]
[1735168182782,1.6132,197.07,197.03,8.89957915]
[1735168184389,1.6187,197.12,197.06,8.89957915]
[1735168184569,1.6187,197.12,197.07,8.89957915]
[1735168184772,6.0755,197.15,197.1,8.89957915]
[1735168185195,1.6187,197.17,197.1,8.89957915]
[1735168185378,1.6187,197.17,197.11,8.89957915]
[1735168186179,1.6187,197.17,197.1,8.89957915]
[1735168190096,1.6187,197.17,197.07,30.0]
[1735168190097,1.6187,197.17,197.12,8.89957915]
[1735168192210,1.5737,197.22,197.15,8.89957915]
[1735168192502,1.5737,197.22,197.17,8.89957915]
[1735168193597,1.5737,197.22,197.16,8.89957915]
[1735168196912,10.47327915,197.27,197.19,8.89957915]
[1735168197118,1.5737,197.27,197.2,8.89957915]
[1735168197600,1.5737,197.27,197.21,8.89957915]
[1735168198379,1.5737,197.27,197.2,8.89957915]
[1735168198589,10.47327915,197.27,197.19,8.89957915]
[1735168200477,1.5737,197.27,197.21,8.89957915]
[1735168200993,6.5042,197.3,197.23,8.89957915]
[1735168201299,15.40377915,197.3,197.23,8.89957915]
[1735168205715,6.5042,197.3,197.24,8.89957915]
[1735168205884,1.5737,197.32,197.27,8.89957915]
[1735168206085,1.5737,197.32,197.28,8.89957915]
[1735168206603,8.89957915,197.36,197.29,8.89957915]
[1735168206805,10.55077915,197.37,197.29,8.89957915]
[1735168207205,10.55077915,197.37,197.3,8.89957915]
[1735168207712,1.6512,197.37,197.33,8.89957915]
[1735168208011,20.5987541,197.46,197.34,30.0]
[1735168208012,8.89957915,197.43,197.34,30.0]
[1735168208198,8.89957915,197.41,197.33,8.89957915]
[1735168208896,8.89957915,197.41,197.34,8.89957915]
[1735168209297,8.89957915,197.41,197.33,8.89957915]
[1735168209500,20.3383,197.45,197.34,8.89957915]
[1735168209501,8.89957915,197.42,197.34,8.89957915]
[1735168210397,8.89957915,197.42,197.35,8.89957915]
[1735168210594,7.6769,197.45,197.37,8.89957915]
[1735168210800,16.57647915,197.45,197.38,8.89957915]
[1735168212201,8.89957915,197.43,197.35,38.89957915]
[1735168212399,7.6769,197.45,197.37,8.89957915]
[1735168213103,7.6769,197.45,197.4,8.89957915]
[1735168213296,1.6512,197.45,197.4,8.89957915]
[1735168213896,1.6512,197.45,197.39,8.89957915]
[1735168214093,1.6512,197.45,197.37,30.0]
[1735168214417,8.89957915,197.44,197.36,8.89957915]
[1735168214815,1.6512,197.45,197.35,30.0]
[1735168215022,8.2594,197.5,197.43,8.89957915]
[1735168215201,8.2594,197.5,197.39,30.0]
[1735168215202,8.2594,197.5,197.44,8.89957915]
[1735168215402,17.15897915,197.5,197.43,8.89957915]
[1735168216125,8.2594,197.5,197.43,8.89957915]
[1735168216423,22.12181076,197.5,197.43,13.86241076]
[1735168216626,22.12181076,197.5,197.42,13.86241076]
[1735168216796,22.12181076,197.5,197.43,13.86241076]
[1735168217120,8.2594,197.5,197.43,13.86241076]
[1735168217425,1.6657,197.5,197.45,13.86241076]
[1735168217803,1.6657,197.5,197.46,13.86241076]
[1735168218003,1.6657,197.5,197.45,13.86241076]
[1735168219901,15.52811076,197.5,197.41,13.86241076]
[1735168220533,15.52811076,197.5,197.43,13.86241076]
[1735168222236,13.86241076,197.48,197.41,13.86241076]
[1735168222638,35.52811076,197.5,197.43,13.86241076]
[1735168223315,1.6657,197.5,197.45,13.86241076]
[1735168223633,1.6657,197.5,197.43,13.86241076]
[1735168223830,15.52811076,197.5,197.43,13.86241076]
[1735168224033,13.86241076,197.48,197.41,13.86241076]
[1735168225332,15.52811076,197.5,197.43,13.86241076]
[1735168227738,15.52811076,197.5,197.41,13.86241076]
[1735168228027,13.86241076,197.46,197.39,13.86241076]
[1735168228424,6.0483,197.47,197.41,13.86241076]
[1735168228620,1.6657,197.5,197.43,13.86241076]
[1735168231335,1.6657,197.5,197.45,13.86241076]
[1735168231526,1.6657,197.5,197.47,13.86241076]
[1735168232540,1.6657,197.5,197.45,13.86241076]
[1735168233640,13.86241076,197.53,197.45,13.86241076]
[1735168233940,13.86241076,197.54,197.47,13.86241076]
[1735168235049,15.45261076,197.56,197.47,13.86241076]
[1735168236535,13.86241076,197.54,197.45,13.86241076]
[1735168237429,13.86241076,197.52,197.45,13.86241076]
[1735168237638,13.86241076,197.48,197.4,13.86241076]
[1735168238150,8.87540702,197.47,197.4,8.87540702]
[1735168239154,8.87540702,197.48,197.4,8.87540702]
[1735168239754,15.19060702,197.49,197.42,8.87540702]
[1735168239951,6.3152,197.49,197.42,8.87540702]
[1735168240153,6.3152,197.49,197.43,8.87540702]
[1735168240536,6.3152,197.49,197.38,30.0]
[1735168240730,6.3152,197.49,197.43,8.87540702]
[1735168243655,1.5902,197.5,197.45,8.87540702]
[1735168244947,1.5902,197.5,197.44,8.87540702]
[1735168246060,1.5902,197.5,197.46,8.87540702]
[1735168247644,7.9034,197.54,197.48,8.87540702]
[1735168250646,16.77880702,197.54,197.45,20.0]
[1735168250847,16.77880702,197.54,197.46,8.87540702]
[1735168251374,8.87540702,197.52,197.45,8.87540702]
[1735168251757,16.77880702,197.54,197.46,8.87540702]
[1735168252471,16.77880702,197.54,197.47,8.87540702]
[1735168252776,7.9034,197.54,197.48,8.87540702]
[1735168252957,7.9034,197.54,197.47,8.87540702]
[1735168254084,7.9034,197.54,197.49,8.87540702]
[1735168254990,7.9034,197.54,197.47,8.87540702]
[1735168257576,7.9034,197.54,197.49,8.87540702]
[1735168257787,1.5882,197.54,197.49,8.87540702]
[1735168258985,1.5882,197.54,197.5,8.87540702]
[1735168261686,1.5882,197.54,197.51,8.87540702]
[1735168261986,1.608,197.58,197.53,8.87540702]
[1735168262175,1.608,197.58,197.54,8.87540702]
[1735168262377,1.608,197.58,197.53,8.87540702]
[1735168263175,7.7585,197.63,197.57,8.87540702]
[1735168263581,7.9328541,197.65,197.59,8.87540702]
[1735168264087,7.9328541,197.66,197.6,8.87540702]
[1735168264489,7.9328541,197.66,197.59,8.87540702]
[1735168265482,8.87540702,197.63,197.54,20.0]
[1735168265690,8.87540702,197.63,197.56,8.87540702]
[1735168265894,8.87540702,197.64,197.57,8.87540702]
[1735168266198,8.87540702,197.65,197.57,8.87540702]
[1735168266397,8.87540702,197.64,197.57,8.87540702]
[1735168266896,14.2547,197.68,197.58,8.87540702]
[1735168267096,1.608,197.68,197.6,8.87540702]
[1735168267289,1.608,197.68,197.58,50.0]
[1735168267290,1.608,197.68,197.62,8.87540702]
[1735168268177,1.608,197.73,197.64,8.87540702]
[1735168268492,8.87540702,197.69,197.58,57.6741]
[1735168268692,8.87540702,197.68,197.6,8.87540702]
[1735168268898,8.87540702,197.68,197.61,28.87540702]
[1735168269091,8.87540702,197.68,197.61,8.87540702]
[1735168270299,13.83754706,197.69,197.62,13.83754706]
[1735168270497,12.76959,197.72,197.62,13.83754706]
[1735168270690,13.83754706,197.68,197.61,33.83754706]
[1735168271001,13.83754706,197.68,197.6,13.83754706]
[1735168271179,13.83754706,197.67,197.6,13.83754706]
[1735168271990,13.83754706,197.68,197.6,13.83754706]
[1735168272885,13.83754706,197.69,197.61,13.83754706]
[1735168273485,13.83754706,197.69,197.62,13.83754706]
[1735168273686,13.83754706,197.7,197.62,13.83754706]
[1735168274408,13.83754706,197.72,197.65,13.83754706]
[1735168274707,13.83754706,197.71,197.64,13.83754706]
[1735168274888,13.83754706,197.69,197.62,33.83754706]
[1735168275487,13.83754706,197.68,197.6,13.83754706]
[1735168276113,13.83754706,197.68,197.61,13.83754706]
[1735168277114,13.83754706,197.64,197.57,13.83754706]
[1735168278310,15.35834706,197.65,197.57,13.83754706]
[1735168278613,15.35834706,197.65,197.54,30.0]
[1735168278614,1.5208,197.65,197.6,13.83754706]
[1735168278814,1.5208,197.65,197.59,13.83754706]
[1735168279116,15.35834706,197.65,197.57,13.83754706]
[1735168279304,1.5208,197.65,197.59,13.83754706]
[1735168282905,1.5208,197.65,197.56,30.0]
[1735168282906,1.5208,197.65,197.61,13.83754706]
[1735168287625,13.83754706,197.69,197.61,13.83754706]
[1735168289521,13.83754706,197.68,197.61,13.83754706]
[1735168292228,8.85641348,197.68,197.61,8.85641348]
[1735168293728,8.85641348,197.68,197.53,13.41514819]
[1735168293729,8.85641348,197.68,197.54,30.0]
[1735168293907,8.85641348,197.65,197.57,20.0]
[1735168294106,8.85641348,197.65,197.57,8.85641348]
[1735168294409,10.46861348,197.64,197.57,8.85641348]
[1735168297233,1.6122,197.64,197.57,8.85641348]
[1735168297536,8.98190348,197.61,197.54,8.85641348]
[1735168297831,8.85641348,197.61,197.54,8.85641348]
[1735168298138,1.6122,197.64,197.48,0.75903327]
[1735168298139,8.98190348,197.59,197.48,0.75903327]
[1735168298341,15.47311348,197.57,197.5,8.85641348]
[1735168300119,6.6167,197.57,197.52,8.85641348]
[1735168300439,1.6122,197.58,197.53,8.85641348]
[1735168302345,1.6122,197.58,197.52,8.85641348]
[1735168303743,10.46861348,197.58,197.51,8.85641348]
[1735168304040,8.85641348,197.55,197.48,8.85641348]
[1735168304634,8.85641348,197.56,197.49,8.85641348]
[1735168305130,14.97211348,197.55,197.45,20.0]
[1735168305524,6.1157,197.55,197.5,8.85641348]
[1735168313277,6.1157,197.55,197.49,8.85641348]
[1735168316675,6.1157,197.55,197.5,8.85641348]
[1735168316910,1.6122,197.58,197.52,8.85641348]
[1735168317253,1.6122,197.58,197.53,8.85641348]
[1735168317456,1.6122,197.58,197.55,8.85641348]
[1735168317662,1.6122,197.58,197.5,30.0]
[1735168317663,1.6122,197.58,197.53,8.85641348]
[1735168317883,1.6122,197.58,197.54,8.85641348]
[1735168318380,1.6122,197.58,197.53,8.85641348]
[1735168318558,1.6122,197.58,197.54,8.85641348]
[1735168319775,8.85641348,197.62,197.54,8.85641348]
[1735168319965,10.51951348,197.63,197.55,8.85641348]
[1735168320161,8.85641348,197.62,197.5,30.0]
[1735168320352,8.85641348,197.61,197.54,8.85641348]
[1735168321891,8.85641348,197.61,197.49,0.75920545]
[1735168322082,8.85641348,197.59,197.51,8.85641348]
[1735168324379,8.85641348,197.57,197.49,8.85641348]
[1735168325188,1.5076,197.56,197.49,8.85641348]
[1735168326198,1.5076,197.56,197.45,20.0]
[1735168326199,8.85641348,197.54,197.47,8.85641348]
[1735168326401,8.85641348,197.54,197.46,8.85641348]
[1735168327995,8.85641348,197.53,197.46,8.85641348]
[1735168328202,8.85641348,197.52,197.45,8.85641348]
[1735168328579,8.85641348,197.51,197.43,8.85641348]